fUST/lending_fUST_20260513
["ID","MTS","AMOUNT","RATE_DAILY","PERIOD"]
[422170838,1778644245000,-2800.72,0.00011506,2]
[422170849,1778644245000,-819.18,0.00011506,2]
[422170851,1778644245000,-500.0,0.00011506,2]
[422170841,1778644245000,-500.0,0.00011506,2]
[422170847,1778644245000,-501.71789602,0.00011506,2]
[422170845,1778644245000,-610.37,0.00011506,2]
[422170843,1778644245000,-500.0,0.00011506,2]
[422170839,1778644245000,-2395.80068689,0.00011506,2]
[422170860,1778644245000,-500.0,0.00011506,2]
[422170858,1778644245000,-3530.57,0.00011506,2]
[422170862,1778644245000,-6655.88,0.00011506,2]
[422170853,1778644245000,-1615.45,0.00011506,2]
[422170854,1778644245000,-500.0,0.00011506,2]
[422170834,1778644245000,-504.45788999,0.00011506,2]
[422170856,1778644245000,-613.78,0.00011506,2]
[422170867,1778644245000,-444.13947254,0.00011506,2]
[422170869,1778644245000,-781.26,0.00011506,2]
[422170878,1778644245000,-501.16038766,0.00011506,2]
[422170871,1778644245000,-353.53587569,0.00011506,2]
[422170882,1778644245000,-500.0,0.00011506,2]
[422170863,1778644245000,-1659.52,0.00011506,2]
[422170880,1778644245000,-1601.15,0.00011506,2]
[422170873,1778644245000,-500.0,0.00011506,2]
[422170875,1778644245000,-2415.7,0.00011506,2]
[422170876,1778644245000,-500.0,0.00011506,2]
[422170884,1778644245000,-500.0,0.00011506,2]
[422170886,1778644245000,-569.79,0.00011506,2]
[422170890,1778644245000,-500.0,0.00011506,2]
[422170777,1778644245000,-500.0,0.00011506,2]
[422170865,1778644245000,-3233.49,0.00011506,2]
[422170832,1778644245000,-504.50279598,0.00011506,2]
[422170888,1778644245000,-1144.9,0.00011506,2]
[422170813,1778644245000,-500.0,0.00011506,2]
[422170830,1778644245000,-500.0,0.00011506,2]
[422170763,1778644245000,-898.73,0.00011506,2]
[422170765,1778644245000,-500.0,0.00011506,2]
[422170779,1778644245000,-500.0,0.00011506,2]
[422170781,1778644245000,-500.0,0.00011506,2]
[422170783,1778644245000,-740.05,0.00011506,2]
[422170785,1778644245000,-500.0,0.00011506,2]
[422170805,1778644245000,-500.0,0.00011506,2]
[422170795,1778644245000,-243.31954186,0.00011506,2]
[422170787,1778644245000,-705.26,0.00011506,2]
[422170791,1778644245000,-500.0,0.00011506,2]
[422170802,1778644245000,-2579.17,0.00011506,2]
[422170789,1778644245000,-500.0,0.00011506,2]
[422170793,1778644245000,-1216.67,0.00011506,2]
[422170797,1778644245000,-677.26,0.00011506,2]
[422170767,1778644245000,-500.0,0.00011506,2]
[422170799,1778644245000,-565.46,0.00011506,2]
[422170804,1778644245000,-500.0,0.00011506,2]
[422170815,1778644245000,-830.52,0.00011506,2]
[422170824,1778644245000,-1725.01,0.00011506,2]
[422170817,1778644245000,-500.0,0.00011506,2]
[422170819,1778644245000,-1093.33,0.00011506,2]
[422170828,1778644245000,-500.0,0.00011506,2]
[422170822,1778644245000,-724.79,0.00011506,2]
[422170811,1778644245000,-500.0,0.00011506,2]
[422170801,1778644245000,-500.0,0.00011506,2]
[422170821,1778644245000,-500.0,0.00011506,2]
[422170803,1778644245000,-500.0,0.00011506,2]
[422170826,1778644245000,-2729.94,0.00011506,2]
[422170809,1778644245000,-1335.89,0.00011506,2]
[422170806,1778644245000,-594.22,0.00011506,2]
[422170807,1778644245000,-500.0,0.00011506,2]
[422170980,1778644246000,-1756.65,0.00011506,2]
[422170978,1778644246000,-500.0,0.00011506,2]
[422170976,1778644246000,-1712.05,0.00011506,2]
[422170973,1778644246000,-939.04,0.00011506,2]
[422170975,1778644246000,-1559.59,0.00011506,2]
[422170967,1778644246000,-2019.38,0.00011506,2]
[422170963,1778644246000,-500.0,0.00011506,2]
[422170959,1778644246000,-500.0,0.00011506,2]
[422170957,1778644246000,-500.0,0.00011506,2]
[422170990,1778644246000,-554.92,0.00011506,2]
[422170961,1778644246000,-500.0,0.00011506,2]
[422170969,1778644246000,-4758.86,0.00011506,2]
[422170971,1778644246000,-502.67551818,0.00011506,2]
[422171003,1778644246000,-500.0,0.00011506,2]
[422170996,1778644246000,-813.31,0.00011506,2]
[422170992,1778644246000,-699.96,0.00011506,2]
[422170997,1778644246000,-591.51,0.00011506,2]
[422170984,1778644246000,-3437.55,0.00011506,2]
[422170999,1778644246000,-2434.27,0.00011506,2]
[422170988,1778644246000,-8167.9,0.00011506,2]
[422170986,1778644246000,-980.34,0.00011506,2]
[422171001,1778644246000,-500.0,0.00011506,2]
[422170982,1778644246000,-42426.44,0.00011506,2]
[422171017,1778644246000,-3028.05,0.00011506,2]
[422171019,1778644246000,-5951.62,0.00011506,2]
[422170956,1778644246000,-500.0,0.00011506,2]
[422171021,1778644246000,-382.0,0.00011507,3]
[422170994,1778644246000,-2226.64,0.00011506,2]
[422170965,1778644246000,-500.0,0.00011506,2]
[422170919,1778644246000,-500.0,0.00011506,2]
[422170952,1778644246000,-2367.8,0.00011506,2]
[422171023,1778644246000,-1563.0,0.00011508,2]
[422170902,1778644246000,-2865.08,0.00011506,2]
[422170892,1778644246000,-501.14753369,0.00011506,2]
[422170908,1778644246000,-500.0,0.00011506,2]
[422170910,1778644246000,-949.49,0.00011506,2]
[422170898,1778644246000,-7333.81,0.00011506,2]
[422170896,1778644246000,-2278.95,0.00011506,2]
[422170905,1778644246000,-1400.28,0.00011506,2]
[422170894,1778644246000,-500.0,0.00011506,2]
[422170904,1778644246000,-732.27,0.00011506,2]
[422170900,1778644246000,-500.0,0.00011506,2]
[422170911,1778644246000,-2435.48,0.00011506,2]
[422170913,1778644246000,-500.0,0.00011506,2]
[422170954,1778644246000,-500.0,0.00011506,2]
[422170917,1778644246000,-2626.72,0.00011506,2]
[422170925,1778644246000,-1093.88,0.00011506,2]
[422170929,1778644246000,-1533.66,0.00011506,2]
[422170926,1778644246000,-8017.85,0.00011506,2]
[422170921,1778644246000,-500.0,0.00011506,2]
[422170923,1778644246000,-2829.91,0.00011506,2]
[422170931,1778644246000,-500.0,0.00011506,2]
[422170933,1778644246000,-6392.09,0.00011506,2]
[422170935,1778644246000,-1566.35,0.00011506,2]
[422170942,1778644246000,-1904.07,0.00011506,2]
[422170943,1778644246000,-5615.95,0.00011506,2]
[422170945,1778644246000,-996.23,0.00011506,2]
[422170947,1778644246000,-5912.39,0.00011506,2]
[422170950,1778644246000,-500.0,0.00011506,2]
[422170915,1778644246000,-2068.82,0.00011506,2]
[422171005,1778644246000,-3876.59,0.00011506,2]
[422171027,1778644246000,-5192.94775898,0.00011514,2]
[422171009,1778644246000,-2417.04,0.00011506,2]
[422171078,1778644246000,-500.0,0.0001178,2]
[422171082,1778644246000,-500.0,0.0001178,2]
[422171084,1778644246000,-500.0,0.0001178,2]
[422171086,1778644246000,-500.0,0.0001178,2]
[422171093,1778644246000,-500.0,0.0001178,2]
[422171097,1778644246000,-500.0,0.0001178,2]
[422171099,1778644246000,-1301.05,0.0001178,2]
[422171095,1778644246000,-500.0,0.0001178,2]
[422171090,1778644246000,-500.0,0.0001178,2]
[422171101,1778644246000,-500.0,0.0001178,2]
[422171088,1778644246000,-500.0,0.0001178,2]
[422171103,1778644246000,-1549.91,0.0001178,2]
[422171091,1778644246000,-1172.83,0.0001178,2]
[422171105,1778644246000,-500.0,0.0001178,2]
[422171106,1778644246000,-500.0,0.0001178,2]
[422171120,1778644246000,-500.0,0.0001178,2]
[422171122,1778644246000,-500.0,0.0001178,2]
[422171124,1778644246000,-500.0,0.0001178,2]
[422171126,1778644246000,-794.83,0.0001178,2]
[422171108,1778644246000,-500.0,0.0001178,2]
[422171114,1778644246000,-500.0,0.0001178,2]
[422171118,1778644246000,-500.0,0.0001178,2]
[422171110,1778644246000,-500.0,0.0001178,2]
[422171116,1778644246000,-898.73,0.0001178,2]
[422171007,1778644246000,-508.82730673,0.00011506,2]
[422171128,1778644246000,-2755.23,0.0001178,2]
[422171130,1778644246000,-500.0,0.0001178,2]
[422171080,1778644246000,-500.0,0.0001178,2]
[422171062,1778644246000,-815.20307405,0.00011767,2]
[422171112,1778644246000,-797.91,0.0001178,2]
[422171072,1778644246000,-498.72040151,0.0001178,2]
[422171074,1778644246000,-581.29,0.0001178,2]
[422171011,1778644246000,-6651.46,0.00011506,2]
[422171013,1778644246000,-1093.68,0.00011506,2]
[422171025,1778644246000,-5385.16099395,0.00011513,2]
[422171029,1778644246000,-493.90903058,0.0001153,2]
[422171030,1778644246000,-160.0,0.00011553,4]
[422171043,1778644246000,-160.0,0.00011708,5]
[422171032,1778644246000,-38330.09,0.00011563,7]
[422171045,1778644246000,-155.0,0.00011723,2]
[422171047,1778644246000,-160.0,0.0001176,2]
[422171036,1778644246000,-200.0,0.00011604,2]
[422171051,1778644246000,-9853.170633,0.0001176,2]
[422171049,1778644246000,-5006.585316,0.0001176,2]
[422171034,1778644246000,-151.0,0.000116,2]
[422171015,1778644246000,-500.0,0.00011506,2]
[422171038,1778644246000,-155.0,0.00011613,2]
[422171052,1778644246000,-186.139064,0.0001176,2]
[422171071,1778644246000,-393.06483692,0.0001178,2]
[422171076,1778644246000,-1341.03,0.0001178,2]
[422171065,1778644246000,-720.2504,0.0001178,2]
[422171069,1778644246000,-544.87,0.0001178,2]
[422171067,1778644246000,-669.0578,0.0001178,2]
[422171060,1778644246000,-260.53,0.00011761,2]
[422171042,1778644246000,-151.0,0.000117,2]
[422171058,1778644246000,-9293.225859,0.0001176,2]
[422171064,1778644246000,-2347.1823,0.0001178,2]
[422171040,1778644246000,-3343.25928784,0.00011699,2]
[422171056,1778644246000,-4726.612929,0.0001176,2]
[422171054,1778644246000,-160.0,0.0001176,2]
[422171199,1778644247000,-613.78,0.0001178,2]
[422171205,1778644247000,-6655.88,0.0001178,2]
[422171201,1778644247000,-3530.57,0.0001178,2]
[422171203,1778644247000,-500.0,0.0001178,2]
[422171185,1778644247000,-500.0,0.0001178,2]
[422171187,1778644247000,-500.0,0.0001178,2]
[422171189,1778644247000,-2800.72,0.0001178,2]
[422171192,1778644247000,-819.18,0.0001178,2]
[422171188,1778644247000,-1068.5,0.0001178,2]
[422171194,1778644247000,-500.0,0.0001178,2]
[422171190,1778644247000,-500.0,0.0001178,2]
[422171191,1778644247000,-610.37,0.0001178,2]
[422171224,1778644247000,-569.79,0.0001178,2]
[422171210,1778644247000,-781.26,0.0001178,2]
[422171209,1778644247000,-3233.49,0.0001178,2]
[422171214,1778644247000,-2415.7,0.0001178,2]
[422171212,1778644247000,-500.0,0.0001178,2]
[422171216,1778644247000,-500.0,0.0001178,2]
[422171222,1778644247000,-500.0,0.0001178,2]
[422171218,1778644247000,-1601.15,0.0001178,2]
[422171220,1778644247000,-500.0,0.0001178,2]
[422171226,1778644247000,-1144.9,0.0001178,2]
[422171228,1778644247000,-500.0,0.0001178,2]
[422171197,1778644247000,-500.0,0.0001178,2]
[422171206,1778644247000,-1659.52,0.0001178,2]
[422171196,1778644247000,-1615.45,0.0001178,2]
[422171157,1778644247000,-500.0,0.0001178,2]
[422171180,1778644247000,-724.79,0.0001178,2]
[422171133,1778644247000,-500.0,0.0001178,2]
[422171132,1778644247000,-500.0,0.0001178,2]
[422171153,1778644247000,-500.0,0.0001178,2]
[422171146,1778644247000,-1216.67,0.0001178,2]
[422171148,1778644247000,-677.26,0.0001178,2]
[422171150,1778644247000,-565.46,0.0001178,2]
[422171139,1778644247000,-705.26,0.0001178,2]
[422171144,1778644247000,-500.0,0.0001178,2]
[422171136,1778644247000,-740.05,0.0001178,2]
[422171230,1778644247000,-500.0,0.0001178,2]
[422171155,1778644247000,-2579.17,0.0001178,2]
[422171183,1778644247000,-2729.94,0.0001178,2]
[422171142,1778644247000,-500.0,0.0001178,2]
[422171161,1778644247000,-500.0,0.0001178,2]
[422171172,1778644247000,-830.52,0.0001178,2]
[422171162,1778644247000,-594.22,0.0001178,2]
[422171176,1778644247000,-1093.33,0.0001178,2]
[422171174,1778644247000,-500.0,0.0001178,2]
[422171178,1778644247000,-500.0,0.0001178,2]
[422171166,1778644247000,-1335.89,0.0001178,2]
[422171168,1778644247000,-500.0,0.0001178,2]
[422171170,1778644247000,-500.0,0.0001178,2]
[422171164,1778644247000,-500.0,0.0001178,2]
[422171181,1778644247000,-1725.01,0.0001178,2]
[422171159,1778644247000,-500.0,0.0001178,2]
[422171235,1778644247000,-500.0,0.0001178,2]
[422171137,1778644247000,-500.0,0.0001178,2]
[422171237,1778644247000,-2865.08,0.0001178,2]
[422171303,1778644247000,-1559.59,0.0001178,2]
[422171294,1778644247000,-500.0,0.0001178,2]
[422171301,1778644247000,-939.04,0.0001178,2]
[422171290,1778644247000,-500.0,0.0001178,2]
[422171297,1778644247000,-2019.38,0.0001178,2]
[422171292,1778644247000,-500.0,0.0001178,2]
[422171306,1778644247000,-1712.05,0.0001178,2]
[422171310,1778644247000,-1756.65,0.0001178,2]
[422171332,1778644247000,-3437.55,0.0001178,2]
[422171330,1778644247000,-42426.44,0.0001178,2]
[422171334,1778644247000,-980.34,0.0001178,2]
[422171336,1778644247000,-8167.9,0.0001178,2]
[422171338,1778644247000,-554.92,0.0001178,2]
[422171343,1778644247000,-2226.64,0.0001178,2]
[422171340,1778644247000,-699.96,0.0001178,2]
[422171345,1778644247000,-813.31,0.0001178,2]
[422171360,1778644247000,-6651.46,0.0001178,2]
[422171347,1778644247000,-591.51,0.0001178,2]
[422171356,1778644247000,-3876.59,0.0001178,2]
[422171362,1778644247000,-1093.68,0.0001178,2]
[422171349,1778644247000,-2434.27,0.0001178,2]
[422171354,1778644247000,-500.0,0.0001178,2]
[422171358,1778644247000,-2417.04,0.0001178,2]
[422171351,1778644247000,-500.0,0.0001178,2]
[422171234,1778644247000,-7333.81,0.0001178,2]
[422171300,1778644247000,-4758.86,0.0001178,2]
[422171296,1778644247000,-500.0,0.0001178,2]
[422171308,1778644247000,-500.0,0.0001178,2]
[422171284,1778644247000,-500.0,0.0001178,2]
[422171241,1778644247000,-1400.28,0.0001178,2]
[422171245,1778644247000,-949.49,0.0001178,2]
[422171239,1778644247000,-732.27,0.0001178,2]
[422171288,1778644247000,-500.0,0.0001178,2]
[422171251,1778644247000,-2068.82,0.0001178,2]
[422171243,1778644247000,-339.88371548,0.0001178,2]
[422171247,1778644247000,-2435.48,0.0001178,2]
[422171249,1778644247000,-500.0,0.0001178,2]
[422171253,1778644247000,-2626.72,0.0001178,2]
[422171255,1778644247000,-397.94659698,0.0001178,2]
[422171269,1778644247000,-6392.09,0.0001178,2]
[422171273,1778644247000,-1904.07,0.0001178,2]
[422171274,1778644247000,-5615.95,0.0001178,2]
[422171232,1778644247000,-2278.95,0.0001178,2]
[422171276,1778644247000,-996.23,0.0001178,2]
[422171278,1778644247000,-5912.39,0.0001178,2]
[422171286,1778644247000,-500.0,0.0001178,2]
[422171261,1778644247000,-1093.88,0.0001178,2]
[422171267,1778644247000,-500.0,0.0001178,2]
[422171257,1778644247000,-500.0,0.0001178,2]
[422171263,1778644247000,-8017.85,0.0001178,2]
[422171259,1778644247000,-2829.91,0.0001178,2]
[422171282,1778644247000,-2367.8,0.0001178,2]
[422171280,1778644247000,-500.0,0.0001178,2]
[422171271,1778644247000,-1566.35,0.0001178,2]
[422171265,1778644247000,-1533.66,0.0001178,2]
[422171409,1778644248000,-201.04,0.00011914,2]
[422171381,1778644248000,-160.0,0.00011819,2]
[422171398,1778644248000,-1112.15511578,0.0001188,2]
[422171385,1778644248000,-12796.376334,0.00011819,2]
[422171392,1778644248000,-160.0,0.00011878,2]
[422171377,1778644248000,-7872.840271,0.00011819,2]
[422171390,1778644248000,-160.0,0.00011863,6]
[422171387,1778644248000,-420.0,0.00011822,2]
[422171388,1778644248000,-155.0,0.00011832,2]
[422171369,1778644248000,-5951.62,0.0001178,2]
[422171375,1778644248000,-160.0,0.00011819,2]
[422171373,1778644248000,-1000.0,0.000118,3]
[422171394,1778644248000,-193.163179,0.00011878,2]
[422171379,1778644248000,-15585.680542,0.00011819,2]
[422171371,1778644248000,-148601.78319142,0.000118,5]
[422171364,1778644248000,-238.37233311,0.0001178,2]
[422171367,1778644248000,-3028.05,0.0001178,2]
[422171400,1778644248000,-2043.3,0.000119,2]
[422171383,1778644248000,-6478.188167,0.00011819,2]
[422171411,1778644248000,-189.81,0.00011914,2]
[422171396,1778644248000,-226.326358,0.00011878,2]
[422171406,1778644248000,-189.83,0.0001191,2]
[422171402,1778644248000,-5234.86646417,0.000119,2]
[422171477,1778644248000,-246.0887512,0.00010958,2]
[422171468,1778644248000,-99.52843314,0.0001178,2]
[422171465,1778644248000,-400.47156686,0.0001178,2]
[422171472,1778644248000,-1830.19757161,0.00012,2]
[422171470,1778644248000,-451.678945,0.00011878,2]
[422171440,1778644248000,-426776.79638647,0.00012,2]
[422171438,1778644248000,-3585.36740699,0.00012,2]
[422171436,1778644248000,-453.0,0.00012,2]
[422171434,1778644248000,-75.9666368,0.00012,2]
[422171478,1778644248000,-9094.98667903,0.00012,2]
[422171426,1778644248000,-6332.39815017,0.00012,2]
[422171428,1778644248000,-8819.8619366,0.00012,2]
[422171479,1778644248000,-9118.56381127,0.00012,2]
[422171424,1778644248000,-25390.84025364,0.00012,2]
[422171417,1778644248000,-189.72,0.00011942,2]
[422171419,1778644248000,-227099.99444839,0.00012,2]
[422171415,1778644248000,-155.0,0.00011942,2]
[422171404,1778644248000,-206.66,0.0001191,2]
[422171413,1778644248000,-189.74,0.00011922,2]
[422171432,1778644248000,-500.0,0.00011506,2]
[422171489,1778644249000,-81827.72928229,0.00012,2]
[422171487,1778644249000,-2169.98510534,0.00012,2]
[422171485,1778644249000,-483.90748233,0.00012,2]
[422171563,1778644392000,3000.0,0.00014,30]
[422171566,1778644702000,152.0,0.00013984,30]
[422171567,1778644703000,152.0,0.00013984,30]
[422171730,1778645336000,10500.0,0.00014,30]
[422171750,1778645432000,-5000.0,8.75e-05,2]
[422171756,1778645432000,-35.8681398,8.926e-05,2]
[422171752,1778645432000,-3191.8754174,8.838e-05,2]
[422171754,1778645432000,-1808.1245826,8.838e-05,2]
[422171777,1778645432000,-500.0,9.872e-05,2]
[422171762,1778645432000,-490.47385418,8.926e-05,2]
[422171764,1778645432000,-1963.43670492,8.927e-05,2]
[422171766,1778645432000,-501.0,8.927e-05,2]
[422171775,1778645432000,-224.54473121,9.425e-05,2]
[422171768,1778645432000,-2535.56329508,8.927e-05,2]
[422171760,1778645432000,-673.65800602,8.926e-05,2]
[422171773,1778645432000,-415.41710479,9.063e-05,2]
[422171770,1778645432000,-300.0,9.016e-05,2]
[422171792,1778645432000,-160.0,0.00010768,2]
[422171798,1778645432000,-82.56075554,0.00010768,2]
[422171790,1778645432000,-152.0,0.00010651,7]
[422171786,1778645432000,-420.0,9.918e-05,2]
[422171794,1778645432000,-77.43924446,0.00010768,2]
[422171788,1778645432000,-566.79207373,0.0001,2]
[422171780,1778645432000,-500.0,9.872e-05,2]
[422171782,1778645432000,-500.0,9.872e-05,2]
[422171783,1778645432000,-500.0,9.872e-05,2]
[422171784,1778645432000,-267.63267794,9.872e-05,2]
[422171804,1778645433000,-225.30584113,0.00010857,2]
[422171802,1778645433000,-201.4347134,0.00010812,2]
[422171800,1778645433000,-161.63868993,0.00010768,2]
[422171892,1778645441000,-1581.42730418,0.00010857,2]
[422171884,1778645441000,-1506.12124209,0.00010857,2]
[422171887,1778645441000,-1581.42730418,0.00010857,2]
[422171883,1778645441000,-1506.12124209,0.00010857,2]
[422171886,1778645441000,-1581.42730418,0.00010857,2]
[422171889,1778645441000,-1581.42730418,0.00010857,2]
[422171890,1778645441000,-1581.42730418,0.00010857,2]
[422171899,1778645441000,-500.0,0.00010857,2]
[422171894,1778645441000,-1581.42730418,0.00010857,2]
[422171905,1778645441000,-252964.8539849,0.00010858,2]
[422171908,1778645441000,-43039.93467934,0.00010858,2]
[422171893,1778645441000,-1581.42730418,0.00010857,2]
[422171898,1778645441000,-1818.64139981,0.00010857,2]
[422171882,1778645441000,-1506.12124209,0.00010857,2]
[422171901,1778645441000,-500.0,0.00010857,2]
[422171903,1778645441000,-477.35826393,0.00010857,2]
[422171891,1778645441000,-1581.42730418,0.00010857,2]
[422171888,1778645441000,-1581.42730418,0.00010857,2]
[422171873,1778645441000,-1506.12124209,0.00010857,2]
[422171885,1778645441000,-1506.12124209,0.00010857,2]
[422171865,1778645441000,-377.69784998,0.00010857,2]
[422171864,1778645441000,-301.27456699,0.00010857,2]
[422171866,1778645441000,-364.46872011,0.00010857,2]
[422171867,1778645441000,-1128.17371129,0.00010857,2]
[422171868,1778645441000,-13.47881069,0.00010857,2]
[422171876,1778645441000,-1506.12124209,0.00010857,2]
[422171872,1778645441000,-1506.12124209,0.00010857,2]
[422171880,1778645441000,-1506.12124209,0.00010857,2]
[422171871,1778645441000,-1506.12124209,0.00010857,2]
[422171869,1778645441000,-971.93167479,0.00010857,2]
[422171874,1778645441000,-1460.222978,0.00010857,2]
[422171875,1778645441000,-45.89826409,0.00010857,2]
[422171877,1778645441000,-1506.12124209,0.00010857,2]
[422171878,1778645441000,-1506.12124209,0.00010857,2]
[422171879,1778645441000,-1506.12124209,0.00010857,2]
[422171881,1778645441000,-1506.12124209,0.00010857,2]
[422171870,1778645441000,-534.1895673,0.00010857,2]
[422171910,1778645441000,-443.0,0.00010912,2]
[422171896,1778645441000,-1818.64139981,0.00010857,2]
[422171912,1778645441000,-500.0,0.00010958,2]
[422171935,1778645441000,-76.62759385,0.00010958,2]
[422171933,1778645441000,-501.54310244,0.00010958,2]
[422171936,1778645441000,-1013.9,0.00010958,2]
[422171940,1778645441000,-501.86339149,0.00010958,2]
[422171937,1778645441000,-500.0,0.00010958,2]
[422171939,1778645441000,-500.0,0.00010958,2]
[422171938,1778645441000,-500.0,0.00010958,2]
[422171942,1778645441000,-500.0,0.00010958,2]
[422171943,1778645441000,-502.16819952,0.00010958,2]
[422171941,1778645441000,-502.78387423,0.00010958,2]
[422171945,1778645441000,-637.54,0.00010958,2]
[422171946,1778645441000,-532.32,0.00010958,2]
[422171944,1778645441000,-502.04347098,0.00010958,2]
[422171947,1778645441000,-712.71,0.00010958,2]
[422171948,1778645441000,-502.32668783,0.00010958,2]
[422171949,1778645441000,-501.44971015,0.00010958,2]
[422171909,1778645441000,-185.0,0.00010912,2]
[422171934,1778645441000,-596.52240615,0.00010958,2]
[422171931,1778645441000,-502.37039336,0.00010958,2]
[422171932,1778645441000,-501.70672417,0.00010958,2]
[422171929,1778645441000,-501.99449915,0.00010958,2]
[422171911,1778645441000,-151.0,0.00010951,2]
[422171914,1778645441000,-548.31512757,0.00010958,2]
[422171915,1778645441000,-500.0,0.00010958,2]
[422171917,1778645441000,-500.0,0.00010958,2]
[422171913,1778645441000,-3586.802,0.00010958,2]
[422171930,1778645441000,-500.0,0.00010958,2]
[422171918,1778645441000,-500.0,0.00010958,2]
[422171920,1778645441000,-500.0,0.00010958,2]
[422171919,1778645441000,-564.38,0.00010958,2]
[422171916,1778645441000,-500.0,0.00010958,2]
[422171921,1778645441000,-361.51440184,0.00010958,2]
[422171924,1778645441000,-500.0,0.00010958,2]
[422171923,1778645441000,-692.1,0.00010958,2]
[422171925,1778645441000,-890.41,0.00010958,2]
[422171926,1778645441000,-2460.88,0.00010958,2]
[422171927,1778645441000,-565.16,0.00010958,2]
[422171928,1778645441000,-500.0,0.00010958,2]
[422171922,1778645441000,-500.0,0.00010958,2]
[422171955,1778645442000,-500.0,0.00010958,2]
[422171950,1778645442000,-501.1123311,0.00010958,2]
[422171953,1778645442000,-502.22333206,0.00010958,2]
[422171954,1778645442000,-500.0,0.00010958,2]
[422171952,1778645442000,-1338.83,0.00010958,2]
[422171951,1778645442000,-501.25363648,0.00010958,2]
[422171956,1778645442000,-502.30593295,0.00010958,2]
[422171957,1778645442000,-500.0,0.00010958,2]
[422171961,1778645442000,-1.50776978,0.00010958,2]
[422171960,1778645442000,-2272.80223022,0.00010958,2]
[422171959,1778645442000,-500.0,0.00010958,2]
[422171965,1778645442000,-500.0,0.00010958,2]
[422171966,1778645442000,-500.0,0.00010958,2]
[422171958,1778645442000,-516.02,0.00010958,2]
[422171962,1778645442000,-488.0191919,0.00010958,2]
[422171963,1778645442000,-670.8808081,0.00010958,2]
[422171964,1778645442000,-500.0,0.00010958,2]
[422171967,1778645442000,-242.17787775,0.00010958,2]
[422171999,1778645444000,-911.4,0.00010958,2]
[422172000,1778645444000,-500.0,0.00010958,2]
[422172001,1778645444000,-505.66088527,0.00010958,2]
[422172003,1778645444000,-682.65,0.00010958,2]
[422172004,1778645444000,-500.0,0.00010958,2]
[422172013,1778645444000,-651.05,0.00010958,2]
[422172006,1778645444000,-500.0,0.00010958,2]
[422172014,1778645444000,-1334.29,0.00010958,2]
[422171997,1778645444000,-2375.6,0.00010958,2]
[422172009,1778645444000,-500.0,0.00010958,2]
[422172011,1778645444000,-399.14513596,0.00010958,2]
[422172005,1778645444000,-500.0,0.00010958,2]
[422171998,1778645444000,-500.0,0.00010958,2]
[422171993,1778645444000,-2358.28,0.00010958,2]
[422171994,1778645444000,-500.0,0.00010958,2]
[422171995,1778645444000,-500.0,0.00010958,2]
[422171991,1778645444000,-624.83,0.00010958,2]
[422171990,1778645444000,-500.0,0.00010958,2]
[422171992,1778645444000,-500.0,0.00010958,2]
[422171989,1778645444000,-931.95,0.00010958,2]
[422171983,1778645444000,-282.58212225,0.00010958,2]
[422171986,1778645444000,-500.0,0.00010958,2]
[422171988,1778645444000,-1520.84,0.00010958,2]
[422171987,1778645444000,-500.0,0.00010958,2]
[422171985,1778645444000,-20.04302173,0.00010958,2]
[422171984,1778645444000,-1306.08697827,0.00010958,2]
[422171982,1778645444000,-407.64,0.00010958,2]
[422172010,1778645444000,-1367.04,0.00010958,2]